fUSD/lending_fUSD_20251019
["ID","MTS","AMOUNT","RATE_DAILY","PERIOD"]
[391817822,1760875832517,-153.0,0.00039591,30]
[391817823,1760875832527,-153.0,0.00039591,30]
[391817824,1760875832537,-153.0,0.00039591,30]
[391817826,1760875832546,-153.0,0.00039591,30]
[391817828,1760875832556,-153.0,0.00039591,30]
[391817830,1760875832565,-153.0,0.00039591,30]
[391817831,1760875832574,-153.0,0.00039591,30]
[391817832,1760875832583,-153.0,0.00039591,30]
[391817833,1760875832593,-153.0,0.00039591,30]
[391817835,1760875832604,-153.0,0.00039591,30]
[391817836,1760875832613,-153.0,0.00039591,30]
[391817837,1760875832623,-153.0,0.00039591,30]
[391817838,1760875832633,-153.0,0.00039591,30]
[391817839,1760875832643,-153.0,0.00039591,30]
[391817840,1760875832652,-153.0,0.00039591,30]
[391817842,1760875832662,-153.0,0.00039591,30]
[391817844,1760875832671,-153.0,0.00039591,30]
[391817846,1760875832680,-153.0,0.00039591,30]
[391817848,1760875832690,-153.0,0.00039591,30]
[391817850,1760875832699,-153.0,0.00039591,30]
[391817851,1760875832708,-153.0,0.00039591,30]
[391817852,1760875832718,-153.0,0.00039591,30]
[391817853,1760875832731,-153.0,0.00039591,30]
[391817854,1760875832740,-153.0,0.00039591,30]
[391817855,1760875832749,-153.0,0.00039591,30]
[391817856,1760875832759,-153.0,0.00039591,30]
[391817857,1760875832769,-50.29383263,0.00039591,7]
[391817858,1760875832785,-673.38616737,0.00039591,7]
[391817859,1760875832795,-275.57438061,0.000396,5]
[391817860,1760875832806,-396.08098432,0.000396,5]
[391817861,1760875832818,-103.91901568,0.000396,5]
[391817862,1760875832827,-245.7,0.00039654,2]
[391817863,1760875832836,-168.0,0.00039823,2]
[391817864,1760875832844,-723.68,0.00039865,7]
[391817865,1760875832852,-723.68,0.00040139,7]
[391817866,1760875832860,-3540.19394396,0.00040221,14]
[391817867,1760875832868,-168.0,0.00040343,2]
[391817868,1760875832878,-723.68,0.00040413,7]
[391817869,1760875832885,-168.0,0.0004045,2]
[391817870,1760875832893,-723.68,0.00040687,7]
[391817871,1760875832901,-168.0,0.00040707,2]
[391817872,1760875832909,-723.68,0.00040961,7]
[391817873,1760875832918,-168.0,0.00040995,2]
[391817874,1760875832925,-243.11514014,0.00041235,7]
[391817875,1760875832935,-480.56485986,0.00041235,7]
[391817876,1760875832942,-168.0,0.00041491,2]
[391817877,1760875832950,-723.71,0.00041509,7]
[391817878,1760875832958,-501.26447539,0.00042,2]
[391817879,1760875832966,-41.21343923,0.00042,30]
[391817880,1760875832979,-991.86288839,0.00042,30]
[391817881,1760875832991,-461.57367238,0.00042,30]
[391817882,1760875833011,-1384.03,0.00042665,120]
[391817883,1760875833020,-168.0,0.00042828,2]
[391817884,1760875833028,-168.0,0.00043253,2]
[391817885,1760875833036,-1000.0,0.000433,2]
[391817886,1760875833045,-171.27,0.00043332,2]
[391817887,1760875833053,-500.0,0.00043534,2]
[391817888,1760875833062,-200.0,0.00043567,2]
[391817889,1760875833070,-291.87,0.00043646,2]
[391817890,1760875833079,-1116.0,0.00043735,30]
[391817891,1760875833088,-1000.0,0.0004381,2]
[391817892,1760875833098,-500.0,0.00043855,2]
[391817893,1760875833108,-5242.69,0.00043889,2]
[391817894,1760875833118,-3067.51,0.00043895,2]
[391817895,1760875833130,-610.0,0.00043916,120]
[391817896,1760875833140,-1825.5,0.00043939,2]
[391817897,1760875833150,-200.0,0.00043949,2]
[391817898,1760875833160,-250.0,0.00044001,120]
[391817899,1760875833170,-225.0,0.00044015,2]
[391817900,1760875833179,-1116.0,0.00044186,30]
[391817901,1760875833189,-759.63849,0.000446,24]
[391817902,1760875833199,-2386.341,0.00044637,71]
[391817903,1760875833209,-189.709,0.00044637,71]
[391817904,1760875833219,-1116.0,0.00044637,30]
[391817905,1760875833229,-500.0,0.00044787,7]
[391817906,1760875833238,-500.0,0.00044787,7]
[391817907,1760875833248,-500.0,0.00044787,120]
[391817908,1760875833257,-500.0,0.00044787,120]
[391817909,1760875833267,-353.11630141,0.00044787,7]
[391817910,1760875833277,-493.56763821,0.00044787,7]
[391817911,1760875833287,-500.0,0.00044787,120]
[391817912,1760875833297,-500.0,0.00044787,120]
[391817913,1760875833307,-500.0,0.00044787,120]
[391817914,1760875833317,-500.0,0.00044787,120]
[391817915,1760875833326,-500.0,0.00044787,120]
[391817916,1760875833335,-500.0,0.00044787,120]
[391817917,1760875833345,-500.0,0.00044787,120]
[391817918,1760875833356,-500.0,0.00044787,120]
[391817919,1760875833370,-500.0,0.00044787,120]
[391817920,1760875833380,-500.0,0.00044787,120]
[391817921,1760875833390,-500.0,0.00044787,120]
[391817922,1760875833400,-500.0,0.00044787,120]
[391817923,1760875833410,-500.0,0.00044787,120]
[391817924,1760875833420,-500.0,0.00044787,120]
[391817925,1760875833429,-500.0,0.00044787,120]
[391817926,1760875833439,-500.0,0.00044787,120]
[391817927,1760875833448,-500.0,0.00044787,120]
[391817928,1760875833458,-500.0,0.00044787,120]
[391817929,1760875833467,-500.0,0.00044787,120]
[391817930,1760875833476,-500.0,0.00044787,120]
[391817931,1760875833485,-500.0,0.00044787,120]
[391817932,1760875833495,-500.0,0.00044787,120]
[391817933,1760875833505,-407.6396625,0.00044787,120]
[391817934,1760875833514,-500.0,0.00044787,120]
[391817935,1760875833524,-500.0,0.00044787,120]
[391817936,1760875833534,-500.0,0.00044787,120]
[391817937,1760875833544,-61789.7308179,0.00044788,120]
[391817938,1760875833557,-1000.0,0.00044797,120]
[391817939,1760875833572,-1442.24809123,0.000448,15]
[391817940,1760875833582,-1442.24809115,0.00044817,15]
[391817941,1760875833593,-1442.24809115,0.00044833,15]
[391817942,1760875833602,-1442.24809115,0.0004485,15]
[391817943,1760875833612,-2996.9998855,0.00044859,2]
[391817944,1760875833623,-1866.9254227,0.00044859,2]
[391817945,1760875833632,-1562.998116,0.00044859,2]
[391817946,1760875833642,-1442.24809115,0.00044867,15]
[391817947,1760875833651,-5050.0,0.0004488,37]
[391817948,1760875833660,-1442.24809115,0.00044883,15]
[391817949,1760875833670,-151.0,0.00044897,120]
[391817950,1760875833680,-5000.0,0.000449,120]
[391817951,1760875833690,-10195.43406732,0.000449,5]
[391817952,1760875833699,-645.19153403,0.000449,17]
[391817953,1760875833709,-661.26952762,0.000449,120]
[391817954,1760875833719,-55555.0,0.000449,60]
[391817955,1760875833731,-170.26807197,0.000449,15]
[391817956,1760875833740,-1442.24809115,0.000449,15]
[391817957,1760875833750,-1442.24809115,0.00044917,15]
[391817958,1760875833763,-1442.24809115,0.00044933,15]
[391817959,1760875833773,-1429.98384778,0.0004495,2]
[391817960,1760875833782,-217.7728071,0.0004495,2]
[391817961,1760875833791,-1442.24809115,0.0004495,15]
[391817962,1760875833801,-4647.12735473,0.00044959,120]
[391817963,1760875833814,-785.8844648,0.00044959,120]
[391817964,1760875833826,-879.77684106,0.00044959,120]
[391817965,1760875833837,-1598.57908307,0.00044959,120]
[391817966,1760875833849,-325.228099,0.00044959,120]
[391817967,1760875833864,-3057.40415734,0.00044959,120]
[391817968,1760875833873,-18744.37265506,0.0004498,3]
[391817969,1760875833885,-19027.25043026,0.0004498,3]
[391817970,1760875833898,-788.9,0.0004498,3]
[391817971,1760875833910,-694.63958201,0.0004498,3]
[391817972,1760875833923,-1904.06574947,0.0004498,3]
[391817975,1760875838070,-5309.5,0.0004498,3]
[391817976,1760875838177,-6653.20320982,0.0004498,3]
[391817981,1760875840114,-1717.06825258,0.0004498,3]
[391817982,1760875840125,-534.26,0.0004498,120]
[391817983,1760875840136,-500.0,0.0004498,30]
[391817984,1760875840147,-500.0,0.0004498,120]
[391817985,1760875840158,-517.93287247,0.00044989,120]
[391817986,1760875840167,-500.0,0.00044989,120]
[391817987,1760875840177,-500.0,0.00044989,120]
[391817988,1760875840186,-500.0,0.00044989,120]
[391817989,1760875840195,-500.0,0.00044989,120]
[391817990,1760875840205,-1813.04,0.00044989,120]
[391817991,1760875840214,-1813.04,0.00044989,120]
[391817992,1760875840225,-300.0,0.0004499,120]
[391817993,1760875840236,-150.0,0.0004499,120]
[391817994,1760875840246,-420.0,0.0004499,120]
[391817995,1760875840257,-150.0,0.0004499,120]
[391817996,1760875840267,-249.83406134,0.0004499,7]
[391817997,1760875840277,-151.29,0.0004499,2]
[391817998,1760875840286,-534.26,0.00044998,120]
[391817999,1760875840295,-534.26,0.00044998,120]
[391818000,1760875840305,-500.0,0.00044998,30]
[391818001,1760875840315,-500.0,0.00044998,30]
[391818002,1760875840326,-500.0,0.00044998,120]
[391818003,1760875840335,-500.0,0.00044998,120]
[391818004,1760875840345,-171.11150628,0.00044999,120]
[391818005,1760875840354,-320.52889676,0.00044999,31]
[391818006,1760875840364,-328.56248147,0.00044999,120]
[391818007,1760875840373,-500.0,0.00044999,120]
[391818008,1760875840382,-500.0,0.00044999,120]
[391818009,1760875840392,-326.85508093,0.00044999,120]
[391818010,1760875840583,-666.0,0.00044999,30]
[391818011,1760875840593,-500.0,0.00044999,120]
[391818012,1760875840603,-500.0,0.00044999,120]
[391818013,1760875840613,-500.0,0.00044999,120]
[391818014,1760875840622,-256.43606962,0.00044999,120]
[391818015,1760875840632,-487.72729578,0.00044999,120]
[391818016,1760875840641,-150.0,0.00044999,120]
[391818017,1760875840650,-534.26,0.00044999,120]
[391818018,1760875840660,-534.26,0.00044999,120]
[391818019,1760875840669,-534.26,0.00044999,120]
[391818020,1760875840678,-534.26,0.00044999,120]
[391818021,1760875840687,-534.26,0.00044999,120]
[391818022,1760875840697,-534.26,0.00044999,120]
[391818023,1760875840707,-534.26,0.00044999,120]
[391818024,1760875840716,-534.26,0.00044999,120]
[391818025,1760875840725,-1000.0,0.00044999,30]
[391818026,1760875840739,-500.0,0.00044999,30]
[391818027,1760875840748,-500.0,0.00044999,30]
[391818028,1760875840759,-500.0,0.00044999,30]
[391818029,1760875840769,-500.0,0.00044999,30]
[391818030,1760875840779,-160.27447938,0.00044999,30]
[391818031,1760875840792,-1813.04,0.00044999,120]
[391818032,1760875840802,-1813.04,0.00044999,120]
[391818033,1760875840812,-1813.04,0.00044999,120]
[391818034,1760875840821,-1813.04,0.00044999,120]
[391818035,1760875840830,-1813.04,0.00044999,120]
[391818036,1760875840840,-1813.04,0.00044999,120]
[391818037,1760875840849,-1813.04,0.00044999,120]
[391818038,1760875840859,-1813.04,0.00044999,120]
[391818039,1760875840868,-1813.04,0.00044999,120]
[391818040,1760875840878,-1813.04,0.00044999,120]
[391818041,1760875840887,-500.0,0.00044999,120]
[391818042,1760875840896,-500.0,0.00044999,120]
[391818043,1760875840905,-500.0,0.00044999,120]
[391818044,1760875840914,-500.0,0.00044999,120]
[391818045,1760875840923,-500.0,0.00044999,120]
[391818046,1760875840933,-351.97626613,0.00044999,120]
[391818047,1760875840942,-150.0,0.00044999,120]
[391818048,1760875840951,-2147.0,0.00045,7]
[391818049,1760875840960,-4060.15501666,0.00045,31]
[391818050,1760875841005,-16043.19707913,0.00045,31]
[391818051,1760875841016,-67379.50478363,0.00045,31]
[391818052,1760875841027,-294.05674955,0.00045,31]
[391818053,1760875841038,-410.0,0.00045,31]
[391818054,1760875841049,-999.225568,0.00045,31]
[391818055,1760875841060,-476699.25930775,0.00045,31]
[391818056,1760875841070,-1000000.0,0.00045,120]
[391818057,1760875841079,-79372.0071062,0.00045,120]
[391818058,1760875841106,-949.33778722,0.00045,120]
[391818059,1760875841117,-827.09999968,0.00045,120]
[391818072,1760875843302,-337.65619182,0.000449,15]
[391818073,1760875843314,-1783.0799067,0.000449,15]
[391818074,1760875843336,-5185.49021825,0.000449,15]
[391818075,1760875843346,-1712.76365538,0.0004495,2]
[391818076,1760875843355,-918851.5551069,0.00045,120]
[391818077,1760875843365,-300.0,0.00045,120]
[391818078,1760875843375,-300.0,0.00045,120]
[391818079,1760875843385,-300.0,0.00045,120]
[391818080,1760875843394,-300.0,0.00045,120]
[391818081,1760875843403,-300.0,0.00045,120]
[391818082,1760875843412,-300.0,0.00045,120]
[391818083,1760875843421,-201.1968,0.00045,120]
[391818084,1760875843430,-151.0,0.00045,120]
[391818085,1760875843440,-242.915094,0.00045,120]
[391818086,1760875843449,-150.0,0.00045001,2]
[391818087,1760875843460,-150.0,0.00045001,2]
[391818088,1760875843470,-150.0,0.00045001,2]
[391818090,1760875843480,-150.0,0.00045001,2]
[391818092,1760875843490,-215.94485222,0.00045001,2]
[391818094,1760875843500,-250.0,0.00045001,2]
[391818095,1760875843509,-200.0,0.00045001,2]
[391818096,1760875843518,-1813.04,0.00045013,120]
[391818098,1760875843528,-10415.0,0.00045014,120]
[391818100,1760875843538,-249.83406134,0.0004504,7]
[391818102,1760875843547,-249.83406134,0.0004504,7]
[391818104,1760875843556,-5729.00012094,0.00045048,2]
[391818105,1760875843566,-534.26,0.00045048,120]
[391818106,1760875843575,-203.15143405,0.00045048,120]
[391818107,1760875843584,-177.89685993,0.00045048,120]
[391818108,1760875843593,-697.63567949,0.00045049,30]
[391818109,1760875843603,-88827.9975609,0.00045049,2]
[391818110,1760875843612,-534.26,0.00045049,120]
[391818111,1760875843622,-534.26,0.00045049,120]
[391818112,1760875843632,-534.26,0.00045049,120]
[391818113,1760875843642,-534.26,0.00045049,120]
[391818114,1760875843651,-534.26,0.00045049,120]
[391818115,1760875843660,-534.26,0.00045049,120]
[391818116,1760875843670,-534.26,0.00045049,120]
[391818117,1760875843680,-534.26,0.00045049,120]
[391818118,1760875843690,-534.26,0.00045049,120]
[391818119,1760875843699,-534.26,0.00045049,120]
[391818120,1760875843708,-534.26,0.00045049,120]
[391818121,1760875843718,-534.43869006,0.00045049,120]
[391818122,1760875843727,-1813.04,0.00045049,120]
[391818123,1760875843741,-1813.04,0.00045049,120]
[391818124,1760875843751,-1813.04,0.00045049,120]
[391818125,1760875843761,-1813.04,0.00045049,120]
[391818126,1760875843771,-1444.4268268,0.00045049,120]
[391818127,1760875843783,-368.6131732,0.00045049,120]
[391818128,1760875843792,-58.37941729,0.00045049,120]
[391818129,1760875843804,-411.411,0.00045049,120]
[391818130,1760875843815,-1343.24958271,0.00045049,120]
[391818131,1760875843825,-1813.04,0.00045049,120]
[391818132,1760875843834,-1813.04,0.00045049,120]
[391818133,1760875843844,-1813.04,0.00045049,120]
[391818134,1760875843854,-1813.04,0.00045049,120]
[391818135,1760875843863,-1813.09905122,0.00045049,120]
[391818136,1760875843873,-1000.0,0.0004505,120]
[391818137,1760875843882,-690320.46016553,0.0004505,120]
[391818538,1760876709117,20152.6922794,0.00015,2]
[391818539,1760876709361,89898.63166532,0.00015,2]
[391818540,1760876709389,938157.8362462,0.00015,2]
[391818541,1760876710937,5069.9636828,0.000154,2]
[391818542,1760876755404,410.09671403,0.000139,2]
[391818544,1760876875244,1100305.82829263,0.00015,2]
[391818545,1760876913442,501.87423731,0.000154,2]
[391818551,1760877032269,-298.53159995,0.00019999,2]
[391818553,1760877032285,-1.46840005,0.00019999,2]
[391818555,1760877032294,-27663.85741017,0.0002,5]
[391818556,1760877032305,-11854.29230454,0.0002,5]
[391818557,1760877032314,-500.0,0.00039973,2]
[391818558,1760877032325,-500.0,0.00039973,5]
[391818559,1760877032344,-500.0,0.00039973,5]
[391818560,1760877032355,-500.0,0.00039973,5]
[391818561,1760877032365,-500.0,0.00039973,5]
[391818562,1760877032375,-500.81021082,0.00039973,5]
[391818563,1760877032384,-500.0,0.00039973,5]
[391818564,1760877032394,-163.80368426,0.00039973,2]
[391818565,1760877032403,-500.0,0.00039973,2]
[391818566,1760877032413,-500.0,0.00039973,5]
[391818567,1760877032423,-500.0,0.00039973,5]
[391818568,1760877032432,-151.0,0.00039997,14]
[391818569,1760877032445,-500.0,0.00039999,7]
[391818570,1760877032455,-500.0,0.00039999,31]
[391818571,1760877032464,-500.0,0.00039999,31]
[391818572,1760877032474,-390.76396625,0.00039999,31]
[391818573,1760877032484,-150.0,0.00039999,4]
[391818574,1760877032493,-75719.75145938,0.0004,2]
[391818575,1760877032506,-562.249999,0.0004,2]
[391818576,1760877032517,-420.0,0.0004,2]
[391818577,1760877032528,-508.5400295,0.0004,2]
[391818578,1760877032539,-2707.17570483,0.0004,2]
[391818621,1760877038186,-1767.33225,0.0004,2]
[391818623,1760877038244,-3747.98100163,0.0004,2]
[391818624,1760877038256,-10604.6119526,0.0004,2]
[391818625,1760877038268,-26242.35640333,0.0004,2]
[391818626,1760877038359,-6249.34999999,0.0004,2]
[391818627,1760877038418,-121370.55426456,0.0004,2]
[391818655,1760877040315,-620.41789166,0.0004,2]
[391818656,1760877040328,-5570.31908196,0.0004,2]
[391818657,1760877040338,-150.0,0.0004,2]
[391818658,1760877040350,-986.60448005,0.00041086,3]
[391818659,1760877040360,-30000.0,0.00041096,120]
[391818660,1760877040369,-432.27,0.00043515,2]
[391818661,1760877040378,-821.56608819,0.00043547,28]
[391818662,1760877040387,-986.60448005,0.00043647,3]
[391818663,1760877040396,-8877.21,0.00043657,2]
[391818664,1760877040405,-986.60448005,0.00043763,3]
[391818665,1760877040415,-5000.0,0.00043773,120]
[391818666,1760877040425,-821.56608812,0.00043812,28]
[391818667,1760877040434,-167.61193945,0.00043845,15]
[391818668,1760877040444,-10700.48266057,0.00043846,15]
[391818669,1760877040454,-349.54,0.00043945,120]
[391818670,1760877040463,-2903.08790045,0.00043945,5]
[391818671,1760877040472,-2566.51,0.00043946,2]
[391818672,1760877040482,-10700.4826605,0.00043974,15]
[391818673,1760877040494,-167.61193941,0.00044071,15]
[391818674,1760877040503,-821.56608812,0.00044076,28]
[391818675,1760877040512,-986.60448005,0.0004409,3]
[391818676,1760877040522,-2000.0,0.000441,120]
[391818677,1760877040531,-2000.0,0.000441,120]
[391818678,1760877040540,-500.0,0.00044101,120]
[391818679,1760877040549,-224.37022773,0.00044101,31]
[391818680,1760877040559,-229.99373703,0.00044101,120]
[391818681,1760877040568,-428.79855665,0.00044101,120]
[391818682,1760877040577,-10700.4826605,0.00044102,15]
[391818683,1760877040588,-1399.51741246,0.00044132,120]
[391818684,1760877040599,-1231.0,0.000442,7]
[391818685,1760877040609,-2000.0,0.000442,120]
[391818686,1760877040620,-171.93466732,0.000442,2]
[391818687,1760877040629,-10700.4826605,0.00044231,15]
[391818688,1760877040638,-986.60448005,0.0004429,3]
[391818689,1760877040647,-167.61193941,0.00044297,15]
[391818691,1760877040656,-2000.0,0.000443,120]
[391818693,1760877040664,-2000.0,0.000443,120]
[391818694,1760877040675,-2000.0,0.0004432,120]
[391818695,1760877040684,-821.56608812,0.00044341,28]
[391818696,1760877040693,-150.75,0.00044347,2]
[391818697,1760877040702,-390.42409406,0.00044359,15]
[391818699,1760877040713,-539.0,0.00044359,15]
[391818700,1760877040725,-3404.98197448,0.00044359,15]
[391818701,1760877040751,-5253.76398673,0.00044359,15]
[391818702,1760877040762,-798.41934022,0.00044359,15]
[391818709,1760877043353,-313.89326501,0.00044359,15]
[391818711,1760877043363,-2000.0,0.000444,120]
[391818714,1760877043372,-10700.4826605,0.00044487,15]
[391818715,1760877043382,-2000.0,0.000445,120]
[391818716,1760877043391,-986.60448005,0.0004451,3]
[391818717,1760877043404,-2000.0,0.0004452,120]
[391818718,1760877043414,-167.61193941,0.00044523,15]
[391818719,1760877043426,-2000.0,0.000446,120]
[391818720,1760877043435,-701.00315,0.000446,24]
[391818721,1760877043445,-821.56608812,0.00044606,28]
[391818722,1760877043454,-10700.4826605,0.00044615,15]
[391818723,1760877043471,-2000.0,0.000447,120]
[391818724,1760877043480,-2000.0,0.0004472,120]
[391818725,1760877043491,-167.61193941,0.00044749,15]
[391818726,1760877043501,-168.37373474,0.00044753,15]
[391818727,1760877043511,-986.60448005,0.00044775,3]
[391818728,1760877043521,-1425.0,0.00044785,2]
[391818729,1760877043531,-1000.0,0.00044798,14]
[391818730,1760877043540,-1000.0,0.000448,120]
[391818731,1760877043552,-2000.0,0.000448,120]
[391818732,1760877043561,-10000.0,0.000448,2]
[391818733,1760877043570,-748.90979821,0.00044805,2]
[391818734,1760877043592,-72.8327206,0.00044805,2]
[391818735,1760877043603,-603.25748119,0.00044805,2]
[391818736,1760877043613,-1257.64639476,0.00044816,17]
[391818737,1760877043624,-1000.0,0.00044839,14]
[391818738,1760877043634,-986.60448005,0.00044841,3]
[391818739,1760877043644,-1272.05869096,0.00044851,2]
[391818740,1760877043655,-152.94130904,0.00044851,2]
[391818741,1760877043664,-2500.0,0.00044853,2]
[391818742,1760877043673,-1000.0,0.0004486,14]
[391818743,1760877043683,-821.56608812,0.00044871,28]
[391818744,1760877043694,-986.60448005,0.0004489,3]
[391818745,1760877043703,-5919.6268803,0.00044894,3]
[391818746,1760877043712,-1909.073,0.000449,72]
[391818747,1760877043721,-189.709,0.000449,72]
[391818748,1760877043730,-2000.0,0.000449,120]
[391818749,1760877043739,-50000.0,0.00044904,120]
[391818750,1760877043749,-4933.02240025,0.00044918,3]
[391818752,1760877043758,-2000.0,0.0004492,120]
[391818753,1760877043768,-57233.33805348,0.00044928,30]
[391818754,1760877043779,-5000.0,0.0004494,120]
[391818755,1760877043788,-708.74789951,0.0004495,17]
[391818756,1760877043798,-550.66571678,0.0004495,120]
[391818757,1760877043813,-55555.0,0.0004495,60]
[391818758,1760877043824,-500.0,0.00044955,120]
[391818759,1760877043834,-538.68711461,0.00044973,10]
[391818760,1760877043845,-167.61193941,0.00044975,15]
[391818761,1760877043855,-500.0,0.00044979,120]
[391818762,1760877043864,-500.0,0.00044983,120]
[391818763,1760877043873,-755.43,0.00044983,120]
[391818764,1760877043881,-1425.0,0.00044985,2]
[391818765,1760877043891,-500.0,0.00044986,120]
[391818766,1760877043900,-217.77280709,0.00044988,2]
[391818767,1760877043910,-953.3225652,0.00044988,2]
[391818768,1760877043919,-420.0,0.0004499,120]
[391818769,1760877043928,-150.0,0.0004499,120]
[391818770,1760877043937,-300.0,0.0004499,120]
[391818771,1760877043947,-1000.0,0.0004499,14]
[391818772,1760877043956,-50000.0,0.00045,31]
[391818773,1760877043965,-902.36447621,0.00045,120]
[391818774,1760877043974,-150.0,0.00045001,2]
[391818775,1760877043984,-150.0,0.00045001,2]
[391818776,1760877043993,-150.0,0.00045001,2]
[391818777,1760877044003,-150.0,0.00045001,2]
[391818778,1760877044012,-215.94485222,0.00045001,2]
[391818779,1760877044021,-250.0,0.00045001,2]
[391818780,1760877044030,-151.45562486,0.00045005,120]
[391818781,1760877044040,-10415.0,0.00045014,120]
[391818782,1760877044049,-1000.0,0.00045024,14]
[391818783,1760877044059,-1425.0,0.00045034,2]
[391818784,1760877044068,-900.56,0.00045039,120]
[391818785,1760877044077,-900.56,0.00045039,120]
[391818786,1760877044087,-568.52,0.00045039,120]
[391818787,1760877044096,-166.5560409,0.0004504,7]
[391818788,1760877044105,-166.5560409,0.00045045,7]
[391818789,1760877044114,-697.63567949,0.00045049,30]
[391818790,1760877044123,-16120.33112997,0.00045049,2]
[391818791,1760877044134,-363.01273596,0.00045049,2]
[391818792,1760877044145,-456.5769477,0.00045049,2]
[391818793,1760877044156,-1801.34150676,0.00045049,2]
[391818794,1760877044170,-303.72376811,0.00045049,2]
[391818795,1760877044180,-900.56,0.00045049,120]
[391818796,1760877044189,-900.56,0.00045049,120]
[391818797,1760877044200,-270.58943967,0.00045049,120]
[391818798,1760877044211,-344.23679222,0.00045049,120]
[391818799,1760877044272,-285.73376811,0.00045049,120]
[391818800,1760877044285,-900.56,0.00045049,120]
[391818801,1760877044295,-900.56,0.00045049,120]
[391818802,1760877044304,-900.56,0.00045049,120]
[391818803,1760877044315,-900.56,0.00045049,120]
[391818804,1760877044324,-900.56,0.00045049,120]
[391818805,1760877044333,-900.56,0.00045049,120]
[391818806,1760877044342,-900.56,0.00045049,120]
[391818807,1760877044353,-500.0,0.00045049,120]
[391818808,1760877044362,-500.0,0.00045049,120]
[391818809,1760877044371,-500.0,0.00045049,120]
[391818810,1760877044380,-500.0,0.00045049,120]
[391818811,1760877044390,-509.21470666,0.00045049,120]
[391818812,1760877044399,-755.43,0.00045049,120]
[391818813,1760877044409,-755.43,0.00045049,120]
[391818814,1760877044418,-755.43,0.00045049,120]
[391818815,1760877044429,-755.43,0.00045049,120]
[391818816,1760877044440,-755.43,0.00045049,120]
[391818817,1760877044450,-755.43,0.00045049,120]
[391818818,1760877044460,-755.43,0.00045049,120]
[391818819,1760877044469,-755.43,0.00045049,120]
[391818820,1760877044479,-755.43,0.00045049,120]
[391818821,1760877044489,-755.43,0.00045049,120]
[391818822,1760877044498,-500.0,0.00045049,120]
[391818823,1760877044508,-500.0,0.00045049,120]
[391818824,1760877044518,-500.0,0.00045049,120]
[391818825,1760877044529,-500.0,0.00045049,120]
[391818826,1760877044538,-351.97626613,0.00045049,120]
[391818827,1760877044547,-177.89685993,0.00045049,120]
[391818828,1760877044556,-1000.0,0.0004505,120]
[391818829,1760877044566,-1866.0,0.0004505,7]
[391818830,1760877044575,-171762.95549971,0.0004505,120]
[391818831,1760877044586,-1919.7,0.0004505,120]
[391818832,1760877044601,-1082.28,0.0004505,120]
[391818833,1760877044612,-474.38004992,0.0004505,120]
[391818835,1760877046318,-7510.44708831,0.00044744,15]
[391818836,1760877046376,-1292.0105296,0.00044744,15]
[391818837,1760877046389,-365.13761643,0.00044744,15]
[391818838,1760877046545,-1299.92129765,0.00044744,15]
[391818839,1760877046656,-232.96612851,0.00044744,15]
[391818840,1760877046667,-3163.65620649,0.0004505,120]
[391818845,1760877621979,-153.93,0.00022092,2]
[391818846,1760877622002,-84.68377398,0.0002651,2]
[391818847,1760877772291,-69.24622602,0.0002651,2]
[391818848,1760877772313,-153.93,0.00030929,2]
[391818849,1760877772334,-62.85226167,0.00035347,2]
[391818850,1760877773715,-91.07773833,0.00035347,2]
[391818851,1760877773741,-107.38663222,0.00037,120]